bitfinex/quotes_BTCUSD_20230103
["timestamp","ask_amount","ask_price","bid_price","bid_amount"]
[1672785752631,2.1191915,16666.0,16665.0,1.47689839]
[1672785753125,2.1191915,16666.0,16665.0,0.87683839]
[1672785754885,2.1191915,16666.0,16665.0,0.60127535]
[1672785756104,2.1191915,16666.0,16665.0,1.20133535]
[1672785756829,2.1191915,16666.0,16665.0,0.60127535]
[1672785758587,2.1191915,16666.0,16665.0,1.20133535]
[1672785760114,2.11982638,16666.0,16665.0,1.20133535]
[1672785760374,1.50344642,16666.0,16665.0,1.20133535]
[1672785760622,1.28924919,16666.0,16665.0,1.20133535]
[1672785760833,1.50343799,16666.0,16665.0,1.20133535]
[1672785761074,2.11981799,16666.0,16665.0,1.20133535]
[1672785761333,1.76166391,16666.0,16665.0,1.20133535]
[1672785761592,2.12108143,16666.0,16665.0,1.20133536]
[1672785761990,2.12108543,16666.0,16665.0,1.20785653]
[1672785762204,2.17647352,16666.0,16665.0,2.0810145]
[1672785762504,1.11210061,16666.0,16665.0,2.0810145]
[1672785762996,1.56007427,16666.0,16665.0,2.0810145]
[1672785763242,1.56006136,16666.0,16665.0,2.0810145]
[1672785763506,1.11206845,16666.0,16665.0,1.4809545]
[1672785763756,2.12105661,16666.0,16665.0,1.4809545]
[1672785764015,1.50467661,16666.0,16665.0,1.48095451]
[1672785764241,2.12105661,16666.0,16665.0,1.48095451]
[1672785765249,1.90689663,16666.0,16665.0,1.48095451]
[1672785765506,2.12201635,16666.0,16665.0,1.48095451]
[1672785767741,2.12201635,16666.0,16665.0,1.20785654]
[1672785767998,2.12198347,16666.0,16665.0,1.20785654]
[1672785768246,1.76259483,16666.0,16665.0,1.20785655]
[1672785768545,2.12200368,16666.0,16665.0,1.20785655]
[1672785768767,2.12200427,16666.0,16665.0,1.20785655]
[1672785769500,1.76259483,16666.0,16665.0,1.20785655]
[1672785770503,1.76259483,16666.0,16665.0,0.00781629]
[1672785770750,1.76259483,16666.0,16665.0,1.20793629]
[1672785771014,1.14621483,16666.0,16665.0,1.20793629]
[1672785772783,1.14621483,16666.0,16665.0,1.2079363]
[1672785776973,0.69822192,16666.0,16665.0,1.2079363]
[1672785778490,1.14778648,16666.0,16665.0,1.4881568]
[1672785784470,1.14778648,16666.0,16665.0,1.48815681]
[1672785785516,1.14783592,16666.0,16665.0,1.48815681]
[1672785785756,0.69822192,16666.0,16665.0,1.48815681]
[1672785786031,0.69822192,16666.0,16665.0,0.88799149]
[1672785786542,0.69822192,16666.0,16665.0,1.20783099]
[1672785787030,1.14790136,16666.0,16665.0,1.20783099]
[1672785787330,1.14790136,16666.0,16665.0,1.80789099]
[1672785787787,1.14773382,16666.0,16665.0,2.08439335]
[1672785788270,0.69805438,16666.0,16665.0,2.08439335]
[1672785788512,0.69805438,16666.0,16665.0,1.48433335]
[1672785789248,0.69805438,16666.0,16665.0,1.807891]
[1672785789983,0.72861645,16666.0,16665.0,1.807891]
[1672785790508,0.69805188,16666.0,16665.0,1.807891]
[1672785790747,0.27893442,16666.0,16665.0,1.807891]
[1672785791116,0.51350178,16666.0,16665.0,1.807891]
[1672785791335,1.14773896,16666.0,16665.0,1.807891]
[1672785791573,1.76411896,16666.0,16665.0,1.807891]
[1672785791820,1.76411896,16666.0,16665.0,2.07724547]
[1672785792600,1.76410911,16666.0,16665.0,2.07224547]
[1672785792840,1.76410747,16666.0,16665.0,2.07224547]
[1672785793583,1.31443188,16666.0,16665.0,1.47076962]
[1672785793834,1.31443188,16666.0,16665.0,2.07082963]
[1672785794082,1.76413444,16666.0,16665.0,2.07082963]
[1672785794324,1.3449949,16666.0,16665.0,2.07082963]
[1672785794575,0.7286149,16666.0,16665.0,1.47076963]
[1672785794822,0.7286149,16666.0,16665.0,2.07082963]
[1672785795359,1.08836885,16666.0,16665.0,2.07082963]
[1672785798408,1.08836885,16666.0,16665.0,2.07082964]
[1672785801172,1.087539,16666.0,16665.0,2.07082964]
[1672785801443,0.87324913,16666.0,16665.0,2.07082964]
[1672785801691,1.08752546,16666.0,16665.0,2.07082964]
[1672785804847,1.08691717,16666.0,16665.0,2.07082964]
[1672785805641,1.14300577,16666.0,16665.0,2.07082964]
[1672785805895,1.75938577,16666.0,16665.0,2.07082964]
[1672785806147,1.14300577,16666.0,16665.0,2.07082964]
[1672785806672,0.87324913,16666.0,16665.0,2.07082965]
[1672785807189,0.69332676,16666.0,16665.0,2.07082965]
[1672785807433,1.30970676,16666.0,16665.0,2.07082965]
[1672785809400,0.69332676,16666.0,16665.0,2.07082965]
[1672785811533,0.69332676,16666.0,16665.0,2.37082965]
[1672785811738,0.69332676,16666.0,16665.0,1.77076965]
[1672785812193,0.69332676,16666.0,16665.0,2.07082965]
[1672785812680,0.69332676,16666.0,16665.0,1.47076965]
[1672785813179,0.69332676,16666.0,16665.0,1.77076966]
[1672785814441,1.30970676,16666.0,16665.0,1.77076966]
[1672785814927,1.30970676,16666.0,16665.0,1.47076966]
[1672785815180,1.30970676,16666.0,16665.0,1.77076966]
[1672785815452,0.69332676,16666.0,16665.0,1.77076966]
[1672785815971,1.30970676,16666.0,16665.0,2.37082966]
[1672785816218,1.48950147,16666.0,16665.0,1.77076966]
[1672785816481,1.48950198,16666.0,16665.0,2.07082966]
[1672785816733,1.30970676,16666.0,16665.0,1.47076966]
[1672785816995,1.48950211,16666.0,16665.0,1.47076966]
[1672785817236,1.48949891,16666.0,16665.0,1.47076966]
[1672785817492,1.30970676,16666.0,16665.0,1.47076966]
[1672785817741,0.69332676,16666.0,16665.0,1.47076966]
[1672785818248,0.69332676,16666.0,16665.0,2.07082966]
[1672785818519,1.30970676,16666.0,16665.0,1.47076966]
[1672785819509,1.30970676,16666.0,16665.0,2.07082966]
[1672785820245,1.30970676,16666.0,16665.0,1.47076967]
[1672785820495,1.30970676,16666.0,16665.0,2.07082967]
[1672785820736,1.75938724,16666.0,16665.0,1.47076967]
[1672785820990,1.72880316,16666.0,16665.0,1.47076967]
[1672785821241,2.17848144,16666.0,16665.0,2.07082967]
[1672785821483,1.75938724,16666.0,16665.0,1.47076967]
[1672785821720,1.14300724,16666.0,16665.0,2.07082967]
[1672785822226,1.14295515,16666.0,16665.0,1.47076967]
[1672785822467,1.75933515,16666.0,16665.0,1.47076967]
[1672785822716,1.75933515,16666.0,16665.0,2.07082967]
[1672785822960,1.30965467,16666.0,16665.0,2.07082967]
[1672785823217,1.30965467,16666.0,16665.0,1.47076967]
[1672785823218,0.69327467,16666.0,16665.0,1.47076967]
[1672785823456,1.14295515,16666.0,16665.0,1.47076967]
[1672785823667,1.75933515,16666.0,16665.0,1.47076967]
[1672785824192,1.14295515,16666.0,16665.0,1.47076967]
[1672785824452,1.14294816,16666.0,16665.0,1.47076967]
[1672785824953,1.14294881,16666.0,16665.0,1.47076967]
[1672785825208,0.87324913,16666.0,16665.0,1.47076967]
[1672785825486,1.14298066,16666.0,16665.0,2.07082967]
[1672785825729,0.69330018,16666.0,16665.0,2.07082967]
[1672785825987,0.69330018,16666.0,16665.0,1.47076967]
[1672785826963,0.69330018,16666.0,16665.0,1.47076968]
[1672785827238,0.69330018,16666.0,16665.0,2.07082968]
[1672785827484,0.87324913,16666.0,16665.0,1.47076968]
[1672785827736,1.48962913,16666.0,16665.0,1.47076968]
[1672785827982,0.87324913,16666.0,16665.0,1.47076968]
[1672785829157,0.87324913,16666.0,16665.0,2.07082968]
[1672785829398,1.08645586,16666.0,16665.0,2.07082968]
[1672785829977,0.87324913,16666.0,16665.0,2.07082968]
[1672785830722,0.87324913,16666.0,16665.0,1.47076968]
[1672785831240,1.08648062,16666.0,16665.0,1.47076968]
[1672785831482,0.87324913,16666.0,16665.0,1.47076968]
[1672785831721,1.08650252,16666.0,16665.0,1.47076968]
[1672785831955,1.48962913,16666.0,16665.0,1.47076968]
[1672785832726,1.70290318,16666.0,16665.0,1.47076968]
[1672785832974,1.08652318,16666.0,16665.0,1.47076968]
[1672785833764,1.70290318,16666.0,16665.0,1.47076968]
[1672785833996,1.70282084,16666.0,16665.0,1.47076968]
[1672785834480,2.1217314,16666.0,16665.0,1.47076968]
[1672785834736,1.70282084,16666.0,16665.0,2.07082968]
[1672785834992,1.70298681,16666.0,16665.0,2.07082968]
[1672785835246,1.70298681,16666.0,16665.0,1.47076968]
[1672785836509,1.70298681,16666.0,16665.0,1.47094059]
[1672785836767,1.70298681,16666.0,16665.0,1.47076968]
[1672785838003,1.70298681,16666.0,16665.0,1.47076969]
[1672785840054,1.70298681,16666.0,16665.0,1.4709406]
[1672785840376,2.12195751,16666.0,16665.0,1.47076969]
[1672785840555,1.70298681,16666.0,16665.0,1.47076969]
[1672785843244,1.70308239,16666.0,16665.0,1.47076969]
[1672785848794,1.70308946,16666.0,16665.0,1.47076969]
[1672785849771,1.70308946,16666.0,16665.0,1.4709406]
[1672785850030,1.70308946,16666.0,16665.0,1.47076969]
[1672785850290,1.34323286,16666.0,16665.0,0.88621245]
[1672785850555,1.92698681,16666.0,16665.0,0.28485723]
[1672785850814,1.31060681,16666.0,16664.0,0.2708764]
[1672785851070,1.63359276,16665.0,16663.0,0.7]
[1672785851327,0.44980474,16664.0,16662.0,1.58330189]
[1672785851548,1.15515188,16664.0,16662.0,1.58330189]
[1672785851831,0.91509186,16664.0,16663.0,0.207617]
[1672785852094,0.23031606,16664.0,16663.0,0.4784934]
[1672785852592,0.5001989,16664.0,16663.0,0.4784934]
[1672785852838,0.5001989,16664.0,16663.0,0.2708764]
[1672785853091,0.96548602,16664.0,16663.0,0.2708764]
[1672785853346,0.97948602,16664.0,16663.0,0.2708764]
[1672785853837,0.97948602,16664.0,16663.0,0.8710084]
[1672785854105,1.33933325,16664.0,16663.0,0.8710084]
[1672785854347,1.15941135,16664.0,16663.0,0.8710084]
[1672785855601,1.33925717,16664.0,16663.0,0.8710084]
[1672785855850,1.33986019,16664.0,16663.0,1.4711404]
[1672785856098,0.51472584,16664.0,16663.0,2.0712724]
[1672785856338,1.16001437,16664.0,16663.0,2.0712724]
[1672785856579,0.69472725,16664.0,16663.0,2.0712724]
[1672785857048,0.8745541,16664.0,16663.0,2.0712724]
[1672785857324,0.51470687,16664.0,16663.0,2.0712724]
[1672785857837,0.51470687,16664.0,16663.0,2.3712724]
[1672785858093,0.24482403,16664.0,16663.0,2.5788964]
[1672785859581,0.24482403,16664.0,16663.0,2.3712724]
[1672785860370,0.50070687,16664.0,16663.0,2.3712724]
[1672785860623,0.51470687,16664.0,16663.0,2.3712724]
[1672785861378,0.24482403,16664.0,16663.0,2.3712724]
[1672785862332,0.24482403,16664.0,16663.0,3.30462202]
[1672785862580,0.24482403,16664.0,16663.0,3.51224602]
[1672785862824,0.01460302,16664.0,16663.0,3.81229602]
[1672785863323,0.01460302,16664.0,16663.0,3.99234621]
[1672785864337,0.01460302,16664.0,16663.0,4.00084621]
[1672785864847,0.06501967,16664.0,16663.0,4.27104811]
[1672785865103,0.05101967,16664.0,16663.0,4.27104811]
[1672785865356,0.06501967,16664.0,16663.0,4.77880422]
[1672785866350,0.06501967,16664.0,16663.0,4.79678582]
[1672785869342,0.06501967,16664.0,16663.0,4.79677582]
[1672785871399,0.06492949,16664.0,16663.0,4.79677582]
[1672785871885,0.06510645,16664.0,16663.0,4.79677582]
[1672785872601,0.06510645,16664.0,16663.0,5.15680781]
[1672785873561,0.06510645,16664.0,16663.0,4.79677582]
[1672785873836,0.06510645,16664.0,16663.0,5.57690766]
[1672785874083,0.06510645,16664.0,16663.0,5.63956955]
[1672785874350,0.06510645,16664.0,16663.0,5.62158795]
[1672785874847,0.0146898,16664.0,16663.0,5.62158795]
[1672785875874,0.06510645,16664.0,16663.0,5.62158795]
[1672785876389,0.06510645,16664.0,16663.0,5.62146847]
[1672785876883,0.0146898,16664.0,16663.0,5.62146847]
[1672785877390,0.0146898,16664.0,16663.0,6.16176847]
[1672785878418,0.0146898,16664.0,16663.0,6.17975007]
[1672785878699,0.0146898,16664.0,16663.0,6.62973513]
[1672785878933,0.06874259,16664.0,16663.0,6.35953323]
[1672785879435,0.06874259,16664.0,16663.0,6.62929988]
[1672785879720,0.06874259,16664.0,16663.0,6.35953323]
[1672785879971,0.06874259,16664.0,16663.0,6.05951323]
[1672785880218,0.06874259,16664.0,16663.0,6.35953323]
[1672785881242,0.06874259,16664.0,16663.0,6.6292656]
[1672785881485,0.06874259,16664.0,16663.0,6.35953323]
[1672785882264,0.06874259,16664.0,16663.0,5.99950124]
[1672785883226,0.06874259,16664.0,16663.0,6.35907238]
[1672785883835,0.0146898,16664.0,16663.0,6.35907238]
[1672785884472,0.0146898,16664.0,16663.0,6.35905533]
[1672785884680,0.0146898,16664.0,16663.0,6.35955875]
[1672785885109,0.0146898,16664.0,16663.0,6.35948449]
[1672785890641,0.0146898,16664.0,16663.0,6.35945449]
[1672785890935,0.06879148,16664.0,16663.0,6.35945449]
[1672785892375,0.06879148,16664.0,16663.0,6.35946449]
[1672785893906,0.04901465,16667.0,16664.0,0.71569113]
[1672785894158,0.04901465,16667.0,16666.0,2.25939]
[1672785894378,0.04901465,16667.0,16666.0,4.92969097]
[1672785894623,0.46350616,16668.0,16666.0,4.93819097]
[1672785894867,1.08134135,16669.0,16667.0,0.4886]
[1672785895096,1.08134135,16669.0,16668.0,2.087551]
[1672785895303,0.64684135,16669.0,16668.0,2.30445721]
[1672785895554,0.64684135,16669.0,16668.0,2.09691021]
[1672785895787,0.64750759,16669.0,16668.0,2.09691021]
[1672785896017,0.64850759,16669.0,16668.0,2.09691021]
[1672785896747,0.64750759,16669.0,16668.0,2.09691021]
[1672785896980,0.91739043,16669.0,16668.0,2.09791021]
[1672785897237,0.91839043,16669.0,16668.0,2.09791021]
[1672785897751,0.91839043,16669.0,16668.0,2.1001274]
[1672785897995,0.64850759,16669.0,16668.0,2.5199794]
[1672785899012,0.18500143,16669.0,16668.0,2.5199794]
[1672785899263,0.18500143,16669.0,16668.0,2.96275964]
[1672785899513,0.64850759,16669.0,16668.0,2.5199794]
[1672785899761,0.64850759,16669.0,16668.0,2.51776221]
[1672785900013,0.91839043,16669.0,16668.0,1.91781021]
[1672785900284,0.91839043,16669.0,16668.0,1.91867435]
[1672785901120,0.64850759,16669.0,16668.0,1.91867435]
[1672785902295,0.91839043,16669.0,16668.0,1.91867435]
[1672785904075,0.91839043,16669.0,16668.0,1.91867434]
[1672785904585,0.91839043,16669.0,16668.0,2.12621534]
[1672785905078,0.91839043,16669.0,16668.0,1.91867434]
[1672785906366,0.91839043,16669.0,16668.0,2.51862634]
[1672785906656,0.45488427,16669.0,16668.0,2.72616734]
[1672785906896,0.45488427,16669.0,16668.0,2.51862634]
[1672785907889,0.45488427,16669.0,16668.0,1.91867434]
[1672785908138,0.91839043,16669.0,16668.0,1.91867433]
[1672785908399,0.45488427,16669.0,16668.0,2.51862633]
[1672785911464,0.45488427,16669.0,16668.0,1.91867433]
[1672785912162,0.45488427,16669.0,16668.0,2.72616733]
[1672785913166,0.45488427,16669.0,16668.0,2.72616732]
[1672785914640,0.45488427,16669.0,16668.0,1.91867432]
[1672785915650,0.89535859,16669.0,16668.0,1.91867432]
[1672785916433,1.25520582,16669.0,16668.0,1.91867431]
[1672785917193,1.07537897,16669.0,16668.0,1.91867431]
[1672785917447,1.07537897,16669.0,16668.0,1.41867431]
[1672785918530,1.07537897,16669.0,16668.0,1.91867431]
[1672785919518,1.52518801,16669.0,16668.0,1.91867431]
[1672785920703,1.25530517,16669.0,16668.0,1.91867431]
[1672785922673,1.25530517,16669.0,16668.0,2.51862631]
[1672785923134,1.25530517,16669.0,16668.0,1.91867431]
[1672785923366,1.25530517,16669.0,16668.0,1.9186743]
[1672785924878,0.81483085,16669.0,16668.0,1.9186743]
[1672785925130,1.24153266,16669.0,16668.0,1.9186743]
[1672785925965,0.81483085,16669.0,16668.0,1.9186743]
[1672785926975,1.08472393,16669.0,16668.0,1.9186743]
[1672785927209,0.63491489,16669.0,16668.0,2.5186263]
[1672785928174,0.63491489,16669.0,16668.0,1.91867429]
[1672785928613,1.05536148,16669.0,16668.0,1.91867429]
[1672785929048,0.63491489,16669.0,16668.0,1.91867429]
[1672785929902,0.63466998,16669.0,16668.0,1.91867429]
[1672785930124,0.63466998,16669.0,16668.0,2.51862629]
[1672785930798,0.63466998,16669.0,16668.0,1.91867429]
[1672785931229,1.08447902,16669.0,16668.0,1.91867429]
[1672785931624,0.63466998,16669.0,16668.0,2.51862629]
[1672785932385,0.63466998,16669.0,16668.0,2.51873714]
[1672785932647,0.63466998,16669.0,16668.0,2.3822913]
[1672785932891,0.8146252,16669.0,16668.0,2.5898323]
[1672785933136,0.70035923,16669.0,16668.0,2.6822913]
[1672785933405,0.70035923,16669.0,16668.0,2.68229129]
[1672785933634,0.70035923,16669.0,16668.0,2.21878513]
[1672785934115,0.70035923,16669.0,16668.0,2.81873713]
[1672785934355,0.70035923,16669.0,16668.0,2.21878513]
[1672785934868,0.70035923,16669.0,16668.0,1.91867428]
[1672785936563,0.70035923,16669.0,16668.0,2.51862628]
[1672785936822,0.70035923,16669.0,16668.0,1.91867428]
[1672785938392,0.70035923,16669.0,16668.0,2.51862628]
[1672785938861,0.70035923,16669.0,16668.0,2.51873713]
[1672785939360,0.70035923,16669.0,16668.0,1.91878513]
[1672785940386,0.70035923,16669.0,16668.0,1.91867428]
[1672785940666,0.70035923,16669.0,16668.0,1.91878513]
[1672785940933,0.88030991,16669.0,16668.0,1.91878513]
[1672785941196,0.88030991,16669.0,16668.0,1.91878512]
[1672785941444,0.52046268,16669.0,16668.0,2.21878512]
[1672785942941,0.52046268,16669.0,16668.0,2.21867427]
[1672785943183,0.70035923,16669.0,16668.0,2.21867427]
[1672785944221,0.70035923,16669.0,16668.0,1.91867427]
[1672785944467,0.70035923,16669.0,16668.0,2.21867427]
[1672785945233,0.70035923,16669.0,16668.0,2.81862626]
[1672785947027,0.70035923,16669.0,16668.0,2.81873711]
[1672785947363,0.88029365,16669.0,16668.0,2.21878511]
[1672785947532,0.88029365,16669.0,16668.0,2.68229127]
[1672785947776,0.88029365,16669.0,16668.0,2.21878511]
[1672785948253,0.52044642,16669.0,16668.0,2.21878511]
[1672785948525,0.88029365,16669.0,16668.0,2.21867426]
[1672785948821,0.88029365,16669.0,16668.0,2.21878511]
[1672785949073,0.88029365,16669.0,16668.0,2.21867426]
[1672785949335,0.88029365,16669.0,16668.0,2.81862626]
[1672785952171,0.88029365,16669.0,16668.0,2.21867426]
[1672785952385,0.88030239,16669.0,16668.0,2.21867426]
[1672785952647,0.70035923,16669.0,16668.0,2.81862626]
[1672785952899,0.70035923,16669.0,16668.0,1.91867425]
[1672785953152,0.88030266,16669.0,16668.0,2.21867425]
[1672785953392,0.70035923,16669.0,16668.0,2.81862625]
[1672785954319,0.70035923,16669.0,16668.0,2.21867425]
[1672785954540,0.70035923,16669.0,16668.0,2.81862625]
[1672785954788,0.70035923,16669.0,16668.0,2.51862625]
[1672785955081,0.70035923,16669.0,16668.0,2.81862625]
[1672785955331,0.88030732,16669.0,16668.0,3.28213241]
[1672785955829,0.88030732,16669.0,16668.0,2.81862625]
[1672785956046,0.88030732,16669.0,16668.0,2.21867425]
[1672785956811,0.88030732,16669.0,16668.0,2.81862624]
[1672785957797,0.88030732,16669.0,16668.0,3.2821324]
[1672785958045,0.88030732,16669.0,16668.0,2.9821324]
[1672785958292,0.52046009,16669.0,16668.0,2.9821324]
[1672785958534,0.52046009,16669.0,16668.0,3.2821324]
[1672785959289,0.52046009,16669.0,16668.0,3.4896734]
[1672785959534,0.52046009,16669.0,16668.0,3.2821324]
[1672785959785,0.52046009,16669.0,16668.0,3.4896734]
[1672785960037,0.25056701,16669.0,16668.0,3.4896734]
[1672785960258,0.52046009,16669.0,16668.0,3.2821324]
[1672785960480,0.25056701,16669.0,16668.0,3.28213239]
[1672785960980,0.25056701,16669.0,16668.0,2.68218039]
[1672785961229,0.52046009,16669.0,16668.0,2.68218039]
[1672785961482,0.52046009,16669.0,16668.0,3.28213239]
[1672785963314,0.52046009,16669.0,16668.0,2.68218039]
[1672785963575,0.52046009,16669.0,16668.0,3.28213239]
[1672785963944,0.52046009,16669.0,16668.0,2.68218039]
[1672785964150,0.52046009,16669.0,16668.0,3.28213239]
[1672785966737,0.52046009,16669.0,16668.0,2.68218039]
[1672785967016,1.13684009,16669.0,16668.0,2.51862622]
[1672785967273,1.75322192,16669.0,16668.0,1.91867422]
[1672785968532,1.31673923,16669.0,16668.0,1.91867422]
[1672785969073,1.49670167,16669.0,16668.0,1.91867422]
[1672785969328,1.13685444,16669.0,16668.0,2.68218038]
[1672785969577,0.52047444,16669.0,16668.0,2.68218038]
[1672785970549,0.52047444,16669.0,16668.0,2.68218037]
[1672785972275,0.52047444,16669.0,16668.0,2.68188037]
[1672785977816,0.88032167,16669.0,16668.0,2.68188037]
[1672785978256,0.88032167,16669.0,16668.0,2.21837421]
[1672785978769,0.52047444,16669.0,16668.0,2.68188037]
[1672785979040,0.25058136,16669.0,16668.0,4.83037271]
[1672785979268,0.25052136,16669.0,16668.0,5.03791371]
[1672785979774,0.25052136,16669.0,16668.0,4.23042071]
[1672785980020,0.52041444,16669.0,16668.0,3.7507304]
[1672785980271,0.52041444,16669.0,16668.0,4.3506824]
[1672785980532,0.52041444,16669.0,16668.0,4.05073039]
[1672785980779,0.24952136,16669.0,16668.0,4.25727139]
[1672785981051,0.52641444,16669.0,16668.0,4.14717139]
[1672785981311,0.25652136,16669.0,16668.0,3.93963039]
[1672785981565,0.24952136,16669.0,16668.0,3.93963039]
[1672785981781,0.25652136,16669.0,16668.0,4.53958239]
[1672785986049,0.25645836,16669.0,16668.0,4.53958239]
[1672785986557,0.25645836,16669.0,16668.0,3.93963039]
[1672785988382,0.25645836,16669.0,16668.0,4.83954239]
[1672785988882,0.07649592,16669.0,16668.0,6.1768378]
[1672785989128,0.07649592,16669.0,16668.0,5.67480915]
[1672785989432,0.07649592,16669.0,16668.0,6.17683863]
[1672785990375,0.07649592,16669.0,16668.0,6.53621925]
[1672785990614,0.07649592,16669.0,16668.0,6.17714714]
[1672785991343,0.07649592,16669.0,16668.0,6.53652776]
[1672785991605,0.07649592,16669.0,16668.0,6.17714714]
[1672785992125,0.07649592,16669.0,16668.0,6.17708427]
[1672785992379,0.07649592,16669.0,16668.0,6.17708426]
[1672785996402,0.07649592,16669.0,16668.0,6.53656606]
[1672785996657,0.07649592,16669.0,16668.0,6.71703566]
[1672785997368,0.07649592,16669.0,16668.0,6.35765504]
[1672785997635,0.07649592,16669.0,16668.0,6.7173525]
[1672785999411,0.07649592,16669.0,16668.0,6.9871216]
[1672785999654,0.07649592,16669.0,16668.0,6.53711654]
[1672786000677,0.07649592,16669.0,16668.0,6.71693544]
[1672786001429,0.07649592,16669.0,16668.0,6.35723797]
[1672786007482,0.07649592,16669.0,16668.0,6.71693543]
[1672786007733,0.07649592,16669.0,16668.0,6.53711653]
[1672786012902,0.07649592,16669.0,16668.0,6.71690596]
[1672786013457,0.07649592,16669.0,16668.0,6.53711653]
[1672786013981,0.07649592,16669.0,16668.0,6.23715653]
[1672786014493,0.07649592,16669.0,16668.0,6.53706653]
[1672786014784,0.07639285,16669.0,16668.0,6.53706653]
[1672786018183,0.07639285,16669.0,16668.0,6.55504813]
[1672786018416,0.07639285,16669.0,16668.0,6.55503813]
[1672786018668,0.07639285,16669.0,16668.0,7.00504319]
[1672786018918,0.07639285,16669.0,16668.0,6.73527409]
[1672786020226,0.07639285,16669.0,16668.0,6.71729249]
[1672786020473,0.07639285,16669.0,16668.0,6.73527409]
[1672786022462,0.07639285,16669.0,16668.0,7.00506405]
[1672786022718,0.07639285,16669.0,16668.0,6.73527409]
[1672786022956,0.07639285,16669.0,16668.0,6.55505952]
[1672786023189,0.07639285,16669.0,16668.0,7.00506458]
[1672786023460,0.07639285,16669.0,16668.0,6.73527409]
[1672786026976,0.07639285,16669.0,16668.0,6.37557663]
[1672786027441,0.07639285,16669.0,16668.0,5.91207047]
[1672786028143,0.07639285,16669.0,16668.0,5.69443911]
[1672786029170,0.07639285,16669.0,16668.0,6.14434741]
[1672786029665,0.07639285,16669.0,16668.0,5.69443911]
[1672786030410,0.07639285,16669.0,16668.0,5.6944391]
[1672786030915,0.07639285,16669.0,16668.0,5.3945391]
[1672786036352,0.07639285,16669.0,16668.0,5.3765575]
[1672786036628,0.07628949,16669.0,16668.0,5.3765575]
[1672786037144,0.07628949,16669.0,16668.0,5.6764575]
[1672786037650,0.07628949,16669.0,16668.0,5.3765575]
[1672786037878,0.07628949,16669.0,16668.0,5.6764575]
[1672786038147,0.07628949,16669.0,16668.0,5.2764575]
[1672786039111,0.07628949,16669.0,16668.0,5.6764475]
[1672786039873,0.07628949,16669.0,16668.0,5.4979475]
[1672786044340,0.07628949,16669.0,16668.0,5.1980575]
[1672786044854,0.07628949,16669.0,16668.0,5.4979575]
[1672786046613,0.04816035,16670.0,16669.0,0.61347194]
[1672786046864,0.04816035,16670.0,16669.0,5.04393573]
[1672786047113,0.00500542,16671.0,16669.0,5.25146073]
[1672786047364,0.00500542,16671.0,16670.0,3.74452671]
[1672786047617,0.00500542,16671.0,16670.0,5.98064678]
[1672786047879,0.00500542,16671.0,16670.0,6.16060769]
[1672786048110,0.01100542,16671.0,16670.0,6.160608]
[1672786048332,0.00500542,16671.0,16670.0,6.160608]
[1672786048549,0.01100542,16671.0,16670.0,6.06364677]
[1672786051032,0.01154848,16671.0,16670.0,6.06364677]
[1672786051785,0.01154848,16671.0,16670.0,6.51353886]
[1672786052038,0.01154848,16671.0,16670.0,6.51353885]
[1672786052263,0.01154848,16671.0,16670.0,6.24360454]
[1672786052800,0.01154848,16671.0,16670.0,6.06360126]
[1672786053055,0.01154848,16671.0,16670.0,5.5836184]
[1672786053286,0.01154848,16671.0,16670.0,5.08158892]
[1672786053544,0.01154848,16671.0,16670.0,5.56944516]
[1672786054361,0.01154848,16671.0,16670.0,5.86944516]
[1672786055337,0.01154848,16671.0,16670.0,5.86944515]
[1672786058221,0.01154848,16671.0,16670.0,6.22935756]
[1672786058915,0.01154848,16671.0,16670.0,6.52923756]
[1672786059376,0.01154848,16671.0,16670.0,6.16932515]
[1672786060967,0.01154848,16671.0,16670.0,5.98922515]
[1672786063187,0.01154848,16671.0,16670.0,6.34913756]
[1672786063438,0.01154848,16671.0,16670.0,6.16920801]
[1672786063684,0.01154848,16671.0,16670.0,5.9892659]
[1672786064406,0.01154848,16671.0,16670.0,6.34917831]
[1672786064889,0.01154848,16671.0,16670.0,6.169208]
[1672786065396,0.01154848,16671.0,16670.0,6.34919108]
[1672786065650,0.01154848,16671.0,16670.0,6.34919097]
[1672786066142,0.01154848,16671.0,16670.0,6.34918097]
[1672786066383,0.01154848,16671.0,16670.0,6.169198]
[1672786068203,0.01147992,16671.0,16670.0,6.169198]
[1672786068708,0.01147992,16671.0,16670.0,6.34919434]
[1672786069227,0.01147992,16671.0,16670.0,5.98928193]
[1672786069468,0.01147992,16671.0,16670.0,6.169198]
[1672786071329,0.01147992,16671.0,16670.0,6.169208]
[1672786073902,0.01147992,16671.0,16670.0,6.16920799]
[1672786074891,0.01147992,16671.0,16670.0,6.61910008]
[1672786075134,0.01147992,16671.0,16670.0,6.16920799]
[1672786075625,0.01147992,16671.0,16670.0,6.61910008]
[1672786076116,0.01147992,16671.0,16670.0,6.16920799]
[1672786076638,0.01147992,16671.0,16670.0,6.61910008]
[1672786076894,0.01147992,16671.0,16670.0,6.16920799]
[1672786077142,0.01147992,16671.0,16670.0,5.98930268]
[1672786079783,0.01147992,16671.0,16670.0,5.98930267]
[1672786081058,0.01147992,16671.0,16670.0,6.16940267]
[1672786082786,0.01147992,16671.0,16670.0,6.16958756]
[1672786083543,0.01147992,16671.0,16670.0,6.52949997]
[1672786083809,0.01147992,16671.0,16670.0,6.34949287]
[1672786084261,0.01147992,16671.0,16670.0,6.52950467]
[1672786084799,0.01147992,16671.0,16670.0,5.98958046]
[1672786085274,0.01147992,16671.0,16670.0,5.98959046]
[1672786086263,0.01147992,16671.0,16670.0,5.98958046]
[1672786086532,0.01147992,16671.0,16670.0,5.68970046]
[1672786087625,0.01147992,16671.0,16670.0,5.98958046]
[1672786088761,0.01147992,16671.0,16670.0,5.68970046]
[1672786089220,0.01147992,16671.0,16670.0,5.98958046]
[1672786089766,0.01147992,16671.0,16670.0,6.34963637]
[1672786090510,0.01147992,16671.0,16670.0,5.76960847]
[1672786092536,0.01147992,16671.0,16670.0,5.56209846]
[1672786095698,0.01147992,16671.0,16670.0,5.76960646]
[1672786096040,0.01147992,16671.0,16670.0,5.56209846]
[1672786097954,0.01147992,16671.0,16670.0,5.26221846]
[1672786099354,0.01147992,16671.0,16670.0,5.46972646]
[1672786099610,0.01147992,16671.0,16670.0,5.28969845]
[1672786100056,0.01147992,16671.0,16670.0,5.08219045]
[1672786101253,0.01147992,16671.0,16670.0,5.44224636]
[1672786101506,0.01147992,16671.0,16670.0,5.62227637]
[1672786101782,0.01147992,16671.0,16670.0,5.82978437]
[1672786102029,0.01147992,16671.0,16670.0,5.64975436]
[1672786102549,0.01147992,16671.0,16670.0,5.94963436]
[1672786103036,0.01147992,16671.0,16670.0,5.64975436]
[1672786103301,0.01147992,16671.0,16670.0,5.74211636]
[1672786103548,0.01147992,16671.0,16670.0,5.92214665]
[1672786103829,0.01147992,16671.0,16670.0,5.56209074]
[1672786104323,0.01147992,16671.0,16670.0,5.92214665]
[1672786104571,0.01147992,16671.0,16670.0,5.92215665]
[1672786105204,0.01147992,16671.0,16670.0,5.56210074]
[1672786106940,0.01147992,16671.0,16670.0,5.0742445]
[1672786107948,0.01147992,16671.0,16670.0,5.55328325]
[1672786108680,0.01147992,16671.0,16670.0,5.0742445]
[1672786109000,0.01147992,16671.0,16670.0,5.55327698]